[Event "Titled Tuesday Blitz June 6 Late 2023"]
[White "Prohaszka, Peter"]
[Black "Paravyan, David"]
[WhiteFideId "726265"]
[BlackFideId "4194985"]
[WhiteElo "2626"]
[BlackElo "2563"]
[Result "0-1"]
[Round "3"]
[TimeControl "180+2"]
[Date "2023.06.07"]
[WhiteClock "0:00:01"]
[BlackClock "0:00:05"]
[Board "5"]

1. d4 {[%clk 0:02:52]}  d5 {[%clk 0:02:59]} 2. Nf3 {[%clk 0:02:52]}  Nf6 {[%clk 0:02:58]} 3. c3 {[%clk 0:02:53]}  e6 {[%clk 0:02:57]} 4. Bg5 {[%clk 0:02:53]}  c5 {[%clk 0:02:56]} 5. e3 {[%clk 0:02:51]}  Qb6 {[%clk 0:02:55]} 6. Qb3 {[%clk 0:02:44]}  Ne4 {[%clk 0:02:51]} 7. Bf4 {[%clk 0:02:40]}  c4 {[%clk 0:02:44]} 8. Qc2 {[%clk 0:02:38]}  Bd6 {[%clk 0:02:35]} 9. Nbd2 {[%clk 0:02:15]}  Nxd2 {[%clk 0:02:33]} 10. Qxd2 {[%clk 0:02:11]}  O-O {[%clk 0:02:33]} 11. b3 {[%clk 0:01:59]}  Bxf4 {[%clk 0:02:28]} 12. exf4 {[%clk 0:01:59]}  cxb3 {[%clk 0:02:29]} 13. axb3 {[%clk 0:02:00]}  Qxb3 {[%clk 0:02:27]} 14. Bd3 {[%clk 0:02:00]}  Qb6 {[%clk 0:02:27]} 15. O-O {[%clk 0:01:53]}  Nc6 {[%clk 0:02:26]} 16. Rfe1 {[%clk 0:01:51]}  Bd7 {[%clk 0:02:24]} 17. Re3 {[%clk 0:01:47]}  Qc7 {[%clk 0:02:18]} 18. Ne5 {[%clk 0:01:28]}  Nxe5 {[%clk 0:02:06]} 19. fxe5 {[%clk 0:01:27]}  f5 {[%clk 0:02:05]} 20. exf6 {[%clk 0:01:21]}  Rxf6 {[%clk 0:02:03]} 21. Qe2 {[%clk 0:00:46]}  Raf8 {[%clk 0:01:49]} 22. Rf1 {[%clk 0:00:46]}  a5 {[%clk 0:01:47]} 23. Rh3 {[%clk 0:00:37]}  h6 {[%clk 0:01:43]} 24. Bb1 {[%clk 0:00:36]}  Be8 {[%clk 0:01:41]} 25. Rg3 {[%clk 0:00:35]}  a4 {[%clk 0:01:38]} 26. h4 {[%clk 0:00:26]}  Qf4 {[%clk 0:01:12]} 27. Qd3 {[%clk 0:00:20]}  Rf5 {[%clk 0:01:00]} 28. Qd1 {[%clk 0:00:20]}  Bh5 {[%clk 0:00:55]} 29. Qxa4 {[%clk 0:00:14]}  R5f7 {[%clk 0:00:45]} 30. Qc2 {[%clk 0:00:13]}  Rf5 {[%clk 0:00:31]} 31. Qb2 {[%clk 0:00:14]}  R5f7 {[%clk 0:00:27]} 32. Qc2 {[%clk 0:00:14]}  g6 {[%clk 0:00:27]} 33. Rxg6+ {[%clk 0:00:13]}  Bxg6 {[%clk 0:00:26]} 34. Qxg6+ {[%clk 0:00:14]}  Rg7 {[%clk 0:00:27]} 35. Qxe6+ {[%clk 0:00:14]}  Qf7 {[%clk 0:00:21]} 36. Bf5 {[%clk 0:00:10]}  Re8 {[%clk 0:00:15]} 37. Qxf7+ {[%clk 0:00:05]}  Kxf7 {[%clk 0:00:16]} 38. Rb1 {[%clk 0:00:05]}  Kf6 {[%clk 0:00:12]} 39. Bd3 {[%clk 0:00:04]}  Rc8 {[%clk 0:00:11]} 40. Rb3 {[%clk 0:00:03]}  Rc6 {[%clk 0:00:10]} 41. h5 {[%clk 0:00:03]}  Rgc7 {[%clk 0:00:10]} 42. Bg6 {[%clk 0:00:03]}  Rxc3 {[%clk 0:00:10]} 43. Rb6+ {[%clk 0:00:04]}  R3c6 {[%clk 0:00:11]} 44. Rb5 {[%clk 0:00:04]}  Rd6 {[%clk 0:00:11]} 45. Kh2 {[%clk 0:00:04]}  b6 {[%clk 0:00:11]} 46. Kg3 {[%clk 0:00:04]}  Rc4 {[%clk 0:00:12]} 47. Rb3 {[%clk 0:00:03]}  Rxd4 {[%clk 0:00:12]} 48. Rf3+ {[%clk 0:00:04]}  Ke6 {[%clk 0:00:07]} 49. Rf8 {[%clk 0:00:04]}  Rd1 {[%clk 0:00:04]} 50. f4 {[%clk 0:00:04]}  d4 {[%clk 0:00:04]} 51. f5+ {[%clk 0:00:04]}  Ke5 {[%clk 0:00:04]} 52. Re8+ {[%clk 0:00:03]}  Kf6 {[%clk 0:00:05]} 53. Kg4 {[%clk 0:00:03]}  d3 {[%clk 0:00:04]} 54. Rf8+ {[%clk 0:00:04]}  Ke5 {[%clk 0:00:05]} 55. Re8+ {[%clk 0:00:04]}  Kd4 {[%clk 0:00:05]} 56. Rf8 {[%clk 0:00:01]}  Rf1 {[%clk 0:00:05]} 0-1


[Site "https://www.chess.com"]

[Event "Titled Tuesday Blitz June 6 Late 2023"]
[White "Skvortsov, Andrei"]
[Black "Kramnik, Vladimir"]
[WhiteFideId "24108600"]
[BlackFideId "4101588"]
[WhiteElo "2259"]
[BlackElo "2703"]
[Result "0-1"]
[Round "3"]
[TimeControl "180+2"]
[Date "2023.06.07"]
[WhiteClock "0:00:07"]
[BlackClock "0:00:09"]
[Board "8"]

1. e4 {[%clk 0:03:00]}  c5 {[%clk 0:02:59]} 2. d4 {[%clk 0:02:58]}  cxd4 {[%clk 0:02:59]} 3. Qxd4 {[%clk 0:02:59]}  Nc6 {[%clk 0:02:59]} 4. Qd3 {[%clk 0:03:00]}  Nf6 {[%clk 0:02:49]} 5. Nc3 {[%clk 0:02:59]}  e6 {[%clk 0:02:44]} 6. Bf4 {[%clk 0:02:59]}  a6 {[%clk 0:02:42]} 7. Be2 {[%clk 0:02:47]}  b5 {[%clk 0:02:38]} 8. e5 {[%clk 0:02:47]}  Qc7 {[%clk 0:02:14]} 9. Qf3 {[%clk 0:02:28]}  Ng8 {[%clk 0:02:10]} 10. O-O-O {[%clk 0:02:18]}  Bb7 {[%clk 0:02:10]} 11. Kb1 {[%clk 0:01:59]}  Rc8 {[%clk 0:02:04]} 12. Qe3 {[%clk 0:01:43]}  Nge7 {[%clk 0:01:57]} 13. Nf3 {[%clk 0:01:37]}  Nf5 {[%clk 0:01:53]} 14. Qd2 {[%clk 0:01:35]}  Bb4 {[%clk 0:01:47]} 15. g4 {[%clk 0:01:31]}  Nfe7 {[%clk 0:01:43]} 16. a3 {[%clk 0:01:19]}  Bxc3 {[%clk 0:01:27]} 17. Qxc3 {[%clk 0:01:18]}  O-O {[%clk 0:01:28]} 18. Qc5 {[%clk 0:01:05]}  Nd5 {[%clk 0:01:14]} 19. Bg3 {[%clk 0:01:01]}  Nce7 {[%clk 0:01:01]} 20. Qxc7 {[%clk 0:00:57]}  Rxc7 {[%clk 0:01:02]} 21. Nd4 {[%clk 0:00:52]}  Ng6 {[%clk 0:01:02]} 22. Rhe1 {[%clk 0:00:50]}  Ngf4 {[%clk 0:00:47]} 23. Bf1 {[%clk 0:00:50]}  g5 {[%clk 0:00:43]} 24. h4 {[%clk 0:00:47]}  h6 {[%clk 0:00:43]} 25. hxg5 {[%clk 0:00:47]}  hxg5 {[%clk 0:00:44]} 26. Bd3 {[%clk 0:00:26]}  Kg7 {[%clk 0:00:42]} 27. Be4 {[%clk 0:00:25]}  Rh8 {[%clk 0:00:36]} 28. Nf3 {[%clk 0:00:24]}  Nh3 {[%clk 0:00:30]} 29. Rh1 {[%clk 0:00:20]}  Rc4 {[%clk 0:00:25]} 30. Bxd5 {[%clk 0:00:12]}  Bxd5 {[%clk 0:00:25]} 31. Rd3 {[%clk 0:00:13]}  Rxg4 {[%clk 0:00:23]} 32. Re1 {[%clk 0:00:11]}  Nf4 {[%clk 0:00:20]} 33. Rc3 {[%clk 0:00:10]}  Ng6 {[%clk 0:00:17]} 34. Rc7 {[%clk 0:00:09]}  Bxf3 {[%clk 0:00:16]} 35. Rxd7 {[%clk 0:00:09]}  Rc8 {[%clk 0:00:14]} 36. Re3 {[%clk 0:00:09]}  Bc6 {[%clk 0:00:12]} 37. Ra7 {[%clk 0:00:09]}  Rc4 {[%clk 0:00:11]} 38. Rxa6 {[%clk 0:00:08]}  Be4 {[%clk 0:00:10]} 39. b3 {[%clk 0:00:07]}  Rxc2 {[%clk 0:00:09]} 0-1


[Site "https://www.chess.com"]

[Event "Titled Tuesday Blitz June 6 Late 2023"]
[White "Deac, Bogdan-Daniel"]
[Black "Wagner, Dennis"]
[WhiteFideId "1226380"]
[BlackFideId "24650684"]
[WhiteElo "2644"]
[BlackElo "2478"]
[Result "1-0"]
[Round "3"]
[TimeControl "180+2"]
[Date "2023.06.07"]
[WhiteClock "0:00:26"]
[BlackClock "0:00:01"]
[Board "9"]

1. b3 {[%clk 0:03:00]}  Nf6 {[%clk 0:02:57]} 2. Bb2 {[%clk 0:03:01]}  g6 {[%clk 0:02:58]} 3. Nf3 {[%clk 0:03:01]}  Bg7 {[%clk 0:02:58]} 4. g3 {[%clk 0:03:01]}  c5 {[%clk 0:02:46]} 5. c4 {[%clk 0:03:01]}  d6 {[%clk 0:02:43]} 6. Bg2 {[%clk 0:03:00]}  e5 {[%clk 0:02:42]} 7. Nc3 {[%clk 0:03:00]}  Nc6 {[%clk 0:02:40]} 8. d3 {[%clk 0:03:00]}  O-O {[%clk 0:02:40]} 9. Nd2 {[%clk 0:02:59]}  a6 {[%clk 0:02:37]} 10. Nf1 {[%clk 0:02:57]}  Rb8 {[%clk 0:02:35]} 11. Ne3 {[%clk 0:02:57]}  Ne7 {[%clk 0:02:32]} 12. O-O {[%clk 0:02:51]}  b5 {[%clk 0:02:31]} 13. a3 {[%clk 0:02:51]}  Be6 {[%clk 0:02:29]} 14. Rb1 {[%clk 0:02:47]}  Qd7 {[%clk 0:02:29]} 15. Ba1 {[%clk 0:02:26]}  Bh3 {[%clk 0:02:27]} 16. b4 {[%clk 0:02:23]}  Bxg2 {[%clk 0:02:25]} 17. Kxg2 {[%clk 0:02:05]}  d5 {[%clk 0:02:19]} 18. cxd5 {[%clk 0:01:56]}  Nexd5 {[%clk 0:02:01]} 19. Nexd5 {[%clk 0:01:46]}  Nxd5 {[%clk 0:02:01]} 20. Ne4 {[%clk 0:01:46]}  cxb4 {[%clk 0:01:57]} 21. axb4 {[%clk 0:01:47]}  f5 {[%clk 0:01:44]} 22. Qb3 {[%clk 0:01:38]}  Kh8 {[%clk 0:01:30]} 23. Nc5 {[%clk 0:01:37]}  Qc6 {[%clk 0:01:30]} 24. e4 {[%clk 0:01:35]}  fxe4 {[%clk 0:01:15]} 25. dxe4 {[%clk 0:01:29]}  Nb6 {[%clk 0:01:13]} 26. Qe6 {[%clk 0:01:20]}  Qxe6 {[%clk 0:00:41]} 27. Nxe6 {[%clk 0:01:19]}  Rfe8 {[%clk 0:00:42]} 28. Nxg7 {[%clk 0:01:13]}  Kxg7 {[%clk 0:00:42]} 29. Rbd1 {[%clk 0:00:59]}  Nc4 {[%clk 0:00:39]} 30. Rd7+ {[%clk 0:00:52]}  Kh6 {[%clk 0:00:38]} 31. Rfd1 {[%clk 0:00:52]}  a5 {[%clk 0:00:26]} 32. bxa5 {[%clk 0:00:46]}  b4 {[%clk 0:00:14]} 33. a6 {[%clk 0:00:44]}  b3 {[%clk 0:00:14]} 34. a7 {[%clk 0:00:41]}  Ra8 {[%clk 0:00:10]} 35. Rb1 {[%clk 0:00:28]}  b2 {[%clk 0:00:03]} 36. Bxb2 {[%clk 0:00:28]}  Nxb2 {[%clk 0:00:03]} 37. Rxb2 {[%clk 0:00:29]}  Rec8 {[%clk 0:00:04]} 38. Rbb7 {[%clk 0:00:28]}  Kg5 {[%clk 0:00:02]} 39. h4+ {[%clk 0:00:27]}  Kf6 {[%clk 0:00:01]} 40. Rd6# {[%clk 0:00:26]} 1-0


[Site "https://www.chess.com"]

[Event "Titled Tuesday Blitz June 6 Late 2023"]
[White "Matinian, Nikita"]
[Black "Kamsky, Gata"]
[WhiteFideId "24129100"]
[BlackFideId "2000024"]
[WhiteElo "2422"]
[BlackElo "2660"]
[Result "0-1"]
[Round "3"]
[TimeControl "180+2"]
[Date "2023.06.07"]
[WhiteClock "0:00:02"]
[BlackClock "0:00:25"]
[Board "13"]

1. e4 {[%clk 0:03:00]}  c5 {[%clk 0:02:59]} 2. Nf3 {[%clk 0:03:01]}  e6 {[%clk 0:02:59]} 3. d4 {[%clk 0:03:01]}  cxd4 {[%clk 0:02:59]} 4. Nxd4 {[%clk 0:03:02]}  a6 {[%clk 0:02:59]} 5. Nc3 {[%clk 0:03:02]}  b5 {[%clk 0:02:59]} 6. Bd3 {[%clk 0:03:02]}  Qb6 {[%clk 0:02:59]} 7. Nb3 {[%clk 0:03:02]}  Qc7 {[%clk 0:02:59]} 8. O-O {[%clk 0:03:02]}  Nc6 {[%clk 0:02:58]} 9. Re1 {[%clk 0:03:00]}  Nf6 {[%clk 0:02:56]} 10. a4 {[%clk 0:02:55]}  b4 {[%clk 0:02:55]} 11. Nd5 {[%clk 0:02:50]}  exd5 {[%clk 0:02:33]} 12. exd5+ {[%clk 0:02:51]}  Ne5 {[%clk 0:02:33]} 13. f4 {[%clk 0:02:20]}  d6 {[%clk 0:02:33]} 14. Nd4 {[%clk 0:01:36]}  Be7 {[%clk 0:01:54]} 15. fxe5 {[%clk 0:01:33]}  dxe5 {[%clk 0:01:54]} 16. Nc6 {[%clk 0:01:27]}  O-O {[%clk 0:01:44]} 17. Nxe7+ {[%clk 0:01:17]}  Qxe7 {[%clk 0:01:43]} 18. d6 {[%clk 0:01:16]}  Qe6 {[%clk 0:01:40]} 19. Bf4 {[%clk 0:01:02]}  e4 {[%clk 0:01:30]} 20. b3 {[%clk 0:00:57]}  Bb7 {[%clk 0:01:23]} 21. Bc4 {[%clk 0:00:57]}  Qf5 {[%clk 0:01:22]} 22. Bg3 {[%clk 0:00:54]}  Qc5+ {[%clk 0:01:08]} 23. Kh1 {[%clk 0:00:40]}  e3 {[%clk 0:01:08]} 24. Qe2 {[%clk 0:00:34]}  Rfe8 {[%clk 0:01:06]} 25. Rad1 {[%clk 0:00:34]}  Bc6 {[%clk 0:00:51]} 26. Kg1 {[%clk 0:00:33]}  h5 {[%clk 0:00:48]} 27. Bh4 {[%clk 0:00:29]}  g5 {[%clk 0:00:34]} 28. Bg3 {[%clk 0:00:18]}  h4 {[%clk 0:00:31]} 29. d7 {[%clk 0:00:19]}  hxg3 {[%clk 0:00:29]} 30. dxe8=Q+ {[%clk 0:00:18]}  Rxe8 {[%clk 0:00:29]} 31. hxg3 {[%clk 0:00:19]}  Qe5 {[%clk 0:00:27]} 32. Rf1 {[%clk 0:00:17]}  Kg7 {[%clk 0:00:27]} 33. Bxa6 {[%clk 0:00:08]}  Qxg3 {[%clk 0:00:26]} 34. Bb5 {[%clk 0:00:04]}  Rh8 {[%clk 0:00:25]} 35. Rxf6 {[%clk 0:00:02]}  Qh2+ {[%clk 0:00:24]} 36. Kf1 {[%clk 0:00:02]}  Qh1# {[%clk 0:00:25]} 0-1


[Site "https://www.chess.com"]

[Event "Titled Tuesday Blitz June 6 Late 2023"]
[White "Makarian, Rudik"]
[Black "Jaracz, Pawel"]
[WhiteFideId "44105681"]
[BlackFideId "1102222"]
[WhiteElo "2451"]
[BlackElo "2454"]
[Result "1-0"]
[Round "3"]
[TimeControl "180+2"]
[Date "2023.06.07"]
[WhiteClock "0:02:33"]
[BlackClock "0:01:21"]
[Board "14"]

1. d4 {[%clk 0:03:00]}  d5 {[%clk 0:02:58]} 2. c4 {[%clk 0:03:01]}  c6 {[%clk 0:02:58]} 3. Nf3 {[%clk 0:03:01]}  Nf6 {[%clk 0:02:57]} 4. Nc3 {[%clk 0:03:02]}  dxc4 {[%clk 0:02:56]} 5. g3 {[%clk 0:03:02]}  b5 {[%clk 0:02:51]} 6. Bg2 {[%clk 0:03:02]}  Bb7 {[%clk 0:02:51]} 7. Ne5 {[%clk 0:03:02]}  a6 {[%clk 0:02:50]} 8. O-O {[%clk 0:03:02]}  e6 {[%clk 0:02:50]} 9. b3 {[%clk 0:03:02]}  b4 {[%clk 0:02:45]} 10. bxc4 {[%clk 0:03:03]}  bxc3 {[%clk 0:02:45]} 11. Rb1 {[%clk 0:03:03]}  Qc8 {[%clk 0:02:38]} 12. Qb3 {[%clk 0:03:02]}  Ra7 {[%clk 0:02:35]} 13. Qb6 {[%clk 0:03:02]}  c2 {[%clk 0:02:31]} 14. Rb3 {[%clk 0:02:59]}  Ra8 {[%clk 0:02:10]} 15. Qxb7 {[%clk 0:02:56]}  Qxb7 {[%clk 0:02:10]} 16. Rxb7 {[%clk 0:02:56]}  Bd6 {[%clk 0:01:48]} 17. Nxf7 {[%clk 0:02:54]}  Be7 {[%clk 0:01:41]} 18. Nxh8 {[%clk 0:02:53]}  Nfd7 {[%clk 0:01:40]} 19. Rb2 {[%clk 0:02:47]}  a5 {[%clk 0:01:39]} 20. Rxc2 {[%clk 0:02:47]}  Ra7 {[%clk 0:01:39]} 21. Bf4 {[%clk 0:02:47]}  Na6 {[%clk 0:01:38]} 22. Rb1 {[%clk 0:02:41]}  Nb4 {[%clk 0:01:37]} 23. Rd2 {[%clk 0:02:40]}  Nb6 {[%clk 0:01:35]} 24. Rc1 {[%clk 0:02:34]}  Bf6 {[%clk 0:01:21]} 25. a3 {[%clk 0:02:33]} 1-0


[Site "https://www.chess.com"]

[Event "Titled Tuesday Blitz June 6 Late 2023"]
[White "Najer, Evgeniy"]
[Black "Kevlishvili, Robby"]
[WhiteFideId "4118987"]
[BlackFideId "1040634"]
[WhiteElo "2545"]
[BlackElo "2572"]
[Result "0-1"]
[Round "3"]
[TimeControl "180+2"]
[Date "2023.06.07"]
[WhiteClock "0:00:02"]
[BlackClock "0:00:15"]
[Board "17"]

1. d4 {[%clk 0:03:00]}  d5 {[%clk 0:02:59]} 2. c4 {[%clk 0:03:00]}  e6 {[%clk 0:02:58]} 3. Nc3 {[%clk 0:02:59]}  a6 {[%clk 0:02:58]} 4. cxd5 {[%clk 0:02:53]}  exd5 {[%clk 0:02:59]} 5. Nf3 {[%clk 0:02:53]}  c6 {[%clk 0:02:58]} 6. Bf4 {[%clk 0:02:47]}  Bd6 {[%clk 0:02:58]} 7. Bxd6 {[%clk 0:02:45]}  Qxd6 {[%clk 0:02:59]} 8. e3 {[%clk 0:02:46]}  Ne7 {[%clk 0:02:58]} 9. Be2 {[%clk 0:02:32]}  O-O {[%clk 0:02:58]} 10. O-O {[%clk 0:02:32]}  Nf5 {[%clk 0:02:55]} 11. Rc1 {[%clk 0:02:21]}  Qe7 {[%clk 0:02:54]} 12. Na4 {[%clk 0:02:13]}  Nd7 {[%clk 0:02:53]} 13. Bd3 {[%clk 0:02:03]}  Nd6 {[%clk 0:02:53]} 14. Re1 {[%clk 0:02:03]}  Nf6 {[%clk 0:02:49]} 15. Nb6 {[%clk 0:02:02]}  Rb8 {[%clk 0:02:49]} 16. Nxc8 {[%clk 0:02:02]}  Rbxc8 {[%clk 0:02:48]} 17. Qb3 {[%clk 0:01:59]}  Nfe4 {[%clk 0:02:47]} 18. Qb4 {[%clk 0:01:58]}  Rfe8 {[%clk 0:02:45]} 19. a4 {[%clk 0:01:51]}  g6 {[%clk 0:02:41]} 20. Ne5 {[%clk 0:01:50]}  f6 {[%clk 0:02:39]} 21. Nf3 {[%clk 0:01:42]}  Kg7 {[%clk 0:02:39]} 22. Nd2 {[%clk 0:00:35]}  Nxd2 {[%clk 0:02:26]} 23. Qxd2 {[%clk 0:00:35]}  Ne4 {[%clk 0:02:26]} 24. Bxe4 {[%clk 0:00:32]}  Qxe4 {[%clk 0:02:26]} 25. b4 {[%clk 0:00:32]}  Qe6 {[%clk 0:01:52]} 26. h3 {[%clk 0:00:30]}  Qd7 {[%clk 0:01:48]} 27. Rc5 {[%clk 0:00:29]}  h5 {[%clk 0:01:47]} 28. Rec1 {[%clk 0:00:29]}  g5 {[%clk 0:01:24]} 29. Qc2 {[%clk 0:00:27]}  Re6 {[%clk 0:00:57]} 30. b5 {[%clk 0:00:26]}  axb5 {[%clk 0:00:57]} 31. axb5 {[%clk 0:00:27]}  Rd6 {[%clk 0:00:55]} 32. Qb3 {[%clk 0:00:25]}  Rc7 {[%clk 0:00:51]} 33. Ra1 {[%clk 0:00:23]}  b6 {[%clk 0:00:37]} 34. bxc6 {[%clk 0:00:22]}  Rcxc6 {[%clk 0:00:35]} 35. Rb5 {[%clk 0:00:17]}  g4 {[%clk 0:00:25]} 36. hxg4 {[%clk 0:00:16]}  hxg4 {[%clk 0:00:26]} 37. g3 {[%clk 0:00:13]}  Qf5 {[%clk 0:00:24]} 38. Qb1 {[%clk 0:00:12]}  Qd7 {[%clk 0:00:20]} 39. Rb2 {[%clk 0:00:05]}  Qc8 {[%clk 0:00:19]} 40. Qd1 {[%clk 0:00:04]}  Rc7 {[%clk 0:00:16]} 41. Rab1 {[%clk 0:00:04]}  Rdc6 {[%clk 0:00:16]} 42. Qe2 {[%clk 0:00:03]}  Rc1+ {[%clk 0:00:14]} 43. Rxc1 {[%clk 0:00:01]}  Rxc1+ {[%clk 0:00:15]} 44. Kg2 {[%clk 0:00:02]}  Qf5 {[%clk 0:00:15]} 0-1


[Site "https://www.chess.com"]

[Event "Titled Tuesday Blitz June 6 Late 2023"]
[White "Li, Ruifeng"]
[Black "Manukyan, Sargis A."]
[WhiteFideId "2061074"]
[BlackFideId "13303970"]
[WhiteElo "2441"]
[BlackElo "2187"]
[Result "1/2-1/2"]
[Round "3"]
[TimeControl "180+2"]
[Date "2023.06.07"]
[WhiteClock "0:00:12"]
[BlackClock "0:00:22"]
[Board "22"]

1. b3 {[%clk 0:03:00]}  d5 {[%clk 0:03:00]} 2. Bb2 {[%clk 0:03:01]}  e6 {[%clk 0:03:00]} 3. e3 {[%clk 0:03:01]}  Nf6 {[%clk 0:03:00]} 4. Nf3 {[%clk 0:03:01]}  Be7 {[%clk 0:03:01]} 5. d4 {[%clk 0:03:01]}  O-O {[%clk 0:03:02]} 6. Bd3 {[%clk 0:03:02]}  b6 {[%clk 0:03:01]} 7. Nbd2 {[%clk 0:03:02]}  Bb7 {[%clk 0:03:02]} 8. O-O {[%clk 0:03:02]}  Ne4 {[%clk 0:03:03]} 9. c4 {[%clk 0:02:59]}  f5 {[%clk 0:03:03]} 10. Ne5 {[%clk 0:02:59]}  Nd7 {[%clk 0:03:03]} 11. Ndf3 {[%clk 0:02:59]}  Nxe5 {[%clk 0:03:00]} 12. Nxe5 {[%clk 0:02:59]}  Bd6 {[%clk 0:02:59]} 13. f3 {[%clk 0:02:59]}  Ng5 {[%clk 0:02:57]} 14. Qc2 {[%clk 0:02:52]}  Nf7 {[%clk 0:02:56]} 15. cxd5 {[%clk 0:02:50]}  Bxd5 {[%clk 0:02:50]} 16. Nxf7 {[%clk 0:02:47]}  Rxf7 {[%clk 0:02:50]} 17. e4 {[%clk 0:02:48]}  fxe4 {[%clk 0:02:36]} 18. fxe4 {[%clk 0:02:47]}  Qh4 {[%clk 0:02:36]} 19. g3 {[%clk 0:02:05]}  Rxf1+ {[%clk 0:02:19]} 20. Rxf1 {[%clk 0:02:04]}  Bxg3 {[%clk 0:02:19]} 21. exd5 {[%clk 0:02:03]}  Bf4 {[%clk 0:01:48]} 22. dxe6 {[%clk 0:01:48]}  Rf8 {[%clk 0:01:48]} 23. Kh1 {[%clk 0:01:41]}  Bd6 {[%clk 0:01:44]} 24. Rxf8+ {[%clk 0:01:38]}  Kxf8 {[%clk 0:01:45]} 25. Qe2 {[%clk 0:01:30]}  Ke7 {[%clk 0:01:42]} 26. Bc3 {[%clk 0:01:21]}  Qh3 {[%clk 0:01:32]} 27. Be4 {[%clk 0:01:06]}  Qxc3 {[%clk 0:01:28]} 28. d5 {[%clk 0:01:03]}  Qc1+ {[%clk 0:01:22]} 29. Kg2 {[%clk 0:01:03]}  Qf4 {[%clk 0:01:20]} 30. Kg1 {[%clk 0:00:51]}  Bc5+ {[%clk 0:01:16]} 31. Kg2 {[%clk 0:00:51]}  Qg5+ {[%clk 0:01:02]} 32. Kh3 {[%clk 0:00:43]}  Bd6 {[%clk 0:00:48]} 33. Qg4 {[%clk 0:00:39]}  Qe3+ {[%clk 0:00:46]} 34. Bf3 {[%clk 0:00:26]}  Qh6+ {[%clk 0:00:41]} 35. Qh4+ {[%clk 0:00:25]}  Qxh4+ {[%clk 0:00:41]} 36. Kxh4 {[%clk 0:00:25]}  Bxh2 {[%clk 0:00:42]} 37. Be4 {[%clk 0:00:26]}  h6 {[%clk 0:00:40]} 38. Kh5 {[%clk 0:00:26]}  Be5 {[%clk 0:00:41]} 39. Kg6 {[%clk 0:00:26]}  Bf6 {[%clk 0:00:41]} 40. Bd3 {[%clk 0:00:25]}  a5 {[%clk 0:00:41]} 41. Bb5 {[%clk 0:00:21]}  Kd6 {[%clk 0:00:35]} 42. Bc6 {[%clk 0:00:20]}  Be7 {[%clk 0:00:33]} 43. a4 {[%clk 0:00:16]}  Bf6 {[%clk 0:00:29]} 44. Bb7 {[%clk 0:00:15]}  Be7 {[%clk 0:00:29]} 45. Bc6 {[%clk 0:00:14]}  Bf8 {[%clk 0:00:24]} 46. Kf7 {[%clk 0:00:11]}  Be7 {[%clk 0:00:22]} 47. Kg6 {[%clk 0:00:12]} 1/2-1/2


[Site "https://www.chess.com"]

[Event "Titled Tuesday Blitz June 6 Late 2023"]
[White "Svane, Frederik"]
[Black "Chos, Alexey"]
[WhiteFideId "12923044"]
[BlackFideId "14117762"]
[WhiteElo "2502"]
[BlackElo "2234"]
[Result "1-0"]
[Round "3"]
[TimeControl "180+2"]
[Date "2023.06.07"]
[WhiteClock "0:00:41"]
[BlackClock "0:01:41"]
[Board "24"]

1. g3 {[%clk 0:03:00]}  h5 {[%clk 0:02:59]} 2. Nf3 {[%clk 0:02:59]}  d6 {[%clk 0:02:55]} 3. Bg2 {[%clk 0:02:57]}  e5 {[%clk 0:02:54]} 4. c4 {[%clk 0:02:57]}  Nc6 {[%clk 0:02:52]} 5. Nc3 {[%clk 0:02:57]}  Be6 {[%clk 0:02:49]} 6. d4 {[%clk 0:02:55]}  exd4 {[%clk 0:02:40]} 7. Nxd4 {[%clk 0:02:55]}  Nxd4 {[%clk 0:02:41]} 8. Qxd4 {[%clk 0:02:55]}  c6 {[%clk 0:02:42]} 9. Bf4 {[%clk 0:02:50]}  Ne7 {[%clk 0:02:30]} 10. O-O-O {[%clk 0:02:36]}  Nf5 {[%clk 0:02:26]} 11. Qd3 {[%clk 0:02:35]}  g5 {[%clk 0:02:26]} 12. e4 {[%clk 0:02:28]}  Nh4 {[%clk 0:02:21]} 13. gxh4 {[%clk 0:01:01]}  gxf4 {[%clk 0:02:17]} 14. Bf3 {[%clk 0:00:58]}  Qxh4 {[%clk 0:02:14]} 15. Qd4 {[%clk 0:00:53]}  Rg8 {[%clk 0:02:05]} 16. e5 {[%clk 0:00:53]}  Bg7 {[%clk 0:01:56]} 17. Qxd6 {[%clk 0:00:49]}  Qxf2 {[%clk 0:01:53]} 18. Bxc6+ {[%clk 0:00:48]}  bxc6 {[%clk 0:01:51]} 19. Qxc6+ {[%clk 0:00:49]}  Ke7 {[%clk 0:01:51]} 20. Qd6+ {[%clk 0:00:43]}  Ke8 {[%clk 0:01:51]} 21. Qc6+ {[%clk 0:00:44]}  Ke7 {[%clk 0:01:50]} 22. Qb7+ {[%clk 0:00:43]}  Ke8 {[%clk 0:01:41]} 23. Qxa8+ {[%clk 0:00:41]}  Ke7 {[%clk 0:01:41]} 24. Qb7+ {[%clk 0:00:41]}  Ke8 {[%clk 0:01:41]} 25. Qc6+ {[%clk 0:00:40]}  Ke7 {[%clk 0:01:41]} 26. Qd6+ {[%clk 0:00:41]} 1-0


[Site "https://www.chess.com"]

[Event "Titled Tuesday Blitz June 6 Late 2023"]
[White "Keymer, Vincent"]
[Black "Ozates, Tuna"]
[WhiteFideId "12940690"]
[BlackFideId "6354521"]
[WhiteElo "2669"]
[BlackElo "2151"]
[Result "1-0"]
[Round "3"]
[TimeControl "180+2"]
[Date "2023.06.07"]
[WhiteClock "0:01:47"]
[BlackClock "0:01:49"]
[Board "25"]

1. a3 {[%clk 0:03:00]}  e5 {[%clk 0:02:54]} 2. c4 {[%clk 0:03:00]}  Nf6 {[%clk 0:02:54]} 3. d3 {[%clk 0:03:00]}  a5 {[%clk 0:02:41]} 4. Nf3 {[%clk 0:02:58]}  d6 {[%clk 0:02:38]} 5. Nc3 {[%clk 0:02:51]}  g6 {[%clk 0:02:36]} 6. g3 {[%clk 0:02:52]}  Bg7 {[%clk 0:02:34]} 7. Bg2 {[%clk 0:02:52]}  O-O {[%clk 0:02:34]} 8. O-O {[%clk 0:02:53]}  Nc6 {[%clk 0:02:35]} 9. Rb1 {[%clk 0:02:53]}  Nh5 {[%clk 0:02:29]} 10. b4 {[%clk 0:02:50]}  axb4 {[%clk 0:02:28]} 11. axb4 {[%clk 0:02:51]}  f5 {[%clk 0:02:29]} 12. b5 {[%clk 0:02:46]}  Ne7 {[%clk 0:02:25]} 13. Bb2 {[%clk 0:02:43]}  h6 {[%clk 0:02:23]} 14. e3 {[%clk 0:02:36]}  f4 {[%clk 0:02:22]} 15. Qd2 {[%clk 0:02:09]}  Be6 {[%clk 0:02:09]} 16. exf4 {[%clk 0:02:02]}  exf4 {[%clk 0:02:08]} 17. Ne4 {[%clk 0:02:03]}  Qd7 {[%clk 0:02:02]} 18. Bxg7 {[%clk 0:01:59]}  Kxg7 {[%clk 0:02:01]} 19. Qb2+ {[%clk 0:01:50]}  Kh7 {[%clk 0:02:01]} 20. Rbe1 {[%clk 0:01:50]}  Bh3 {[%clk 0:01:49]} 21. Bxh3 {[%clk 0:01:47]} 1-0


[Site "https://www.chess.com"]